bitfinex/quotes_SOLUSD_20251030
["timestamp","ask_amount","ask_price","bid_price","bid_amount"]
[1761857923091,6.26162915,182.43,182.38,9.0091551]
[1761857923403,0.1,182.43,182.42,3.52636481]
[1761857925005,0.78,182.43,182.42,3.52636481]
[1761857925393,0.78,182.43,182.42,9.00821986]
[1761857925800,0.1,182.43,182.42,9.00821986]
[1761857927295,0.1,182.43,182.42,3.52636481]
[1761857927795,0.1,182.43,182.38,19.82070073]
[1761857927996,0.78,182.43,182.38,19.19070073]
[1761857928214,0.78,182.43,182.4,3.52636481]
[1761857929018,0.78,182.43,182.38,9.00942216]
[1761857929221,4.86590313,182.43,182.39,3.52636481]
[1761857929515,0.1,182.43,182.42,3.52636481]
[1761857930409,0.1,182.43,182.42,4.15636481]
[1761857930819,0.1,182.43,182.4,0.63]
[1761857931019,0.78,182.43,182.39,61.7]
[1761857931324,0.1,182.43,182.42,7.73588946]
[1761857933799,0.1,182.43,182.42,8.36588946]
[1761857934713,0.1,182.43,182.42,5.48185505]
[1761857934930,0.1,182.43,182.42,7.73588946]
[1761857935503,0.1,182.48,182.42,7.73588946]
[1761857935504,0.1,182.48,182.43,9.78882769]
[1761857935718,0.1,182.48,182.47,2.25403441]
[1761857936722,0.1,182.48,182.47,2.78403441]
[1761857937098,0.1,182.53,182.47,2.78403441]
[1761857937294,0.1,182.53,182.52,7.73288604]
[1761857939525,0.1,182.53,182.52,2.25403441]
[1761857939821,0.1,182.53,182.52,7.73288604]
[1761857940205,0.1,182.53,182.52,2.25403441]
[1761857941422,0.1,182.53,182.52,7.73288604]
[1761857942702,0.81,182.53,182.52,5.47885163]
[1761857942902,0.81,182.53,182.45,5.48095368]
[1761857943121,0.81,182.53,182.5,2.25403441]
[1761857943316,0.81,182.53,182.52,2.25403441]
[1761857943514,0.1,182.53,182.52,2.25403441]
[1761857943831,1e-08,182.53,182.52,2.25403441]
[1761857946120,0.71000001,182.53,182.52,2.25403441]
[1761857946621,1e-08,182.53,182.52,2.25403441]
[1761857947736,1e-08,182.53,182.44,27.40568308]
[1761857947737,2.96403442,182.53,182.44,0.53]
[1761857948038,0.71000001,182.53,182.48,2.25403441]
[1761857948342,0.71,182.52,182.48,2.25403441]
[1761857948710,0.71,182.52,182.49,2.25403441]
[1761857949409,0.71,182.52,182.47,2.25403441]
[1761857949611,8.44311532,182.52,182.47,2.25403441]
[1761857949961,4.07239494,182.51,182.47,2.25403441]
[1761857950134,4.78239494,182.51,182.47,2.25403441]
[1761857950436,0.71,182.5,182.47,2.25403441]
[1761857951514,0.71,182.5,182.47,7.73435749]
[1761857952126,2.25403442,182.53,182.49,2.25403441]
[1761857952127,1e-08,182.53,182.49,2.25403441]
[1761857952461,1e-08,182.53,182.47,19.18120541]
[1761857952462,0.71000001,182.53,182.52,2.25403441]
[1761857952743,1e-08,182.53,182.52,2.25403441]
[1761857954043,1e-08,182.53,182.52,7.73288604]
[1761857957761,0.66000001,182.53,182.44,72.01882769]
[1761857958059,0.66000001,182.53,182.49,2.25403441]
[1761857958360,0.66000001,182.53,182.48,2.25403441]
[1761857959045,0.66000001,182.53,182.49,2.25403441]
[1761857959359,6.13868515,182.53,182.49,2.25403441]
[1761857959560,4.0768287,182.52,182.48,7.73404304]
[1761857959752,0.66,182.52,182.48,7.73404304]
[1761857960061,0.66,182.51,182.48,7.73404304]
[1761857960258,0.66,182.51,182.5,2.25403441]
[1761857960460,1e-08,182.53,182.5,4.50806882]
[1761857960642,1e-08,182.53,182.52,4.50806882]
[1761857961082,1e-08,182.53,182.52,5.03806882]
[1761857961236,1e-08,182.53,182.52,10.51692045]
[1761857962153,1e-08,182.53,182.52,9.98692045]
[1761857962492,1e-08,182.53,182.5,13.69817004]
[1761857962493,0.66000001,182.53,182.48,13.70003565]
[1761857962640,0.66000001,182.53,182.52,2.25403441]
[1761857962641,1e-08,182.53,182.52,2.25403441]
[1761857963343,1e-08,182.53,182.52,7.73288604]
[1761857963976,0.66000001,182.53,182.52,7.73288604]
[1761857964271,1e-08,182.53,182.52,7.73288604]
[1761857965044,1e-08,182.53,182.41,0.53]
[1761857965045,0.66000001,182.53,182.41,0.53]
[1761857965245,0.66000001,182.53,182.49,2.25403441]
[1761857965446,0.66000001,182.53,182.5,2.25403441]
[1761857965978,0.66000001,182.53,182.45,13.7023574]
[1761857966184,0.66000001,182.53,182.5,2.25403441]
[1761857966750,10.22147123,182.53,182.49,2.25403441]
[1761857967089,6.13855966,182.53,182.5,2.25403441]
[1761857967254,0.66,182.52,182.5,2.25403441]
[1761857967583,4.7450388,182.52,182.5,2.25403441]
[1761857967781,0.66,182.51,182.5,2.25403441]
[1761857970016,1e-08,182.53,182.5,2.25403441]
[1761857970179,1e-08,182.53,182.52,2.25403441]
[1761857970380,1e-08,182.53,182.52,9.98692045]
[1761857970574,1e-08,182.53,182.52,10.51692045]
[1761857970977,1e-08,182.53,182.52,9.98692045]
[1761857971177,1e-08,182.53,182.52,10.51692045]
[1761857974389,1e-08,182.53,182.52,9.98692045]
[1761857976785,1e-08,182.53,182.52,16.74902368]
[1761857977201,1e-08,182.53,182.52,7.73288604]
[1761857977893,1e-08,182.53,182.52,69.43288604]
[1761857979589,0.67,182.6,182.52,30.97615276]
[1761857979790,4.09637426,182.59,182.58,2.25403441]
[1761857980204,4.76637426,182.59,182.58,2.25403441]
[1761857980578,4.76637426,182.59,182.57,2.25403441]
[1761857980790,4.76637426,182.58,182.57,2.25403441]
[1761857981312,0.67,182.58,182.57,2.25403441]
[1761857981499,0.67,182.6,182.58,5.47705115]
[1761857981800,4.76592058,182.6,182.59,2.25403441]
[1761857982004,0.67,182.6,182.59,2.25403441]
[1761857982187,4.76592058,182.6,182.59,2.25403441]
[1761857982610,0.67,182.6,182.59,2.25403441]
[1761857982788,4.76592058,182.6,182.59,2.25403441]
[1761857983189,0.67,182.6,182.59,2.25403441]
[1761857984381,0.67,182.6,182.49,10.31882769]
[1761857984382,12.49443478,182.6,182.49,10.31882769]
[1761857984607,6.34790912,182.59,182.49,0.53]
[1761857984826,4.09387471,182.58,182.55,2.25403441]
[1761857985116,4.09387471,182.57,182.55,2.25403441]
[1761857985283,4.76387471,182.56,182.55,2.25403441]
[1761857985693,0.67,182.56,182.55,2.25403441]
[1761857985881,0.67,182.56,182.54,7.73217961]
[1761857986090,4.76387471,182.56,182.54,7.73217961]
[1761857986291,0.67,182.56,182.54,7.73217961]
[1761857986490,0.67,182.56,182.54,5.4781452]
[1761857987804,0.67,182.56,182.47,0.53]
[1761857988004,4.09404188,182.55,182.51,2.25403441]
[1761857988314,4.09404188,182.54,182.51,2.25403441]
[1761857988499,0.67,182.55,182.52,2.25403441]
[1761857988813,4.09470744,182.54,182.51,2.25403441]
[1761857989105,0.67,182.56,182.5,2.25403441]
[1761857989277,4.76479419,182.55,182.5,2.25403441]
[1761857989482,4.09479419,182.54,182.51,5.47915182]
[1761857989700,4.76479419,182.54,182.51,5.47915182]
[1761857989901,0.67,182.53,182.51,5.47915182]
[1761857992500,0.67,182.53,182.51,7.73318623]
[1761857993410,0.67,182.53,182.51,8.99722532]
[1761857995809,4.09637257,182.56,182.52,3.5180735]
[1761857996104,4.09637257,182.55,182.51,19.17703138]
[1761857996304,0.67,182.57,182.51,3.5180735]
[1761857996305,4.09694456,182.54,182.51,3.5180735]
[1761857996604,4.09726195,182.53,182.51,3.5180735]
[1761857996908,0.67,182.56,182.52,5.47885163]
[1761857997089,4.76719144,182.55,182.52,5.47885163]
[1761857997289,4.09719144,182.54,182.52,5.47885163]
[1761857997504,4.09719144,182.53,182.52,5.47885163]
[1761857997712,4.76719144,182.53,182.52,5.47885163]
[1761857997891,0.67,182.53,182.52,5.47885163]
[1761857998605,4.76719144,182.53,182.52,5.47885163]
[1761857998909,0.72,182.54,182.52,8.99692513]
[1761857999598,0.72,182.54,182.53,3.5180735]
[1761857999797,4.09791552,182.58,182.53,4.0480735]
[1761858000007,4.09791552,182.57,182.52,84.39405421]
[1761858000217,4.09791552,182.56,182.52,80.87598071]
[1761858000395,0.72,182.61,182.52,80.87598071]
[1761858000587,4.81725607,182.6,182.52,80.87598071]
[1761858000788,4.09725607,182.59,182.52,80.87598071]
[1761858000988,4.81725607,182.58,182.52,80.87598071]
[1761858001189,4.09725607,182.57,182.5,5.47943109]
[1761858001494,4.09725607,182.56,182.53,3.5180735]
[1761858001698,4.81725607,182.55,182.54,3.5180735]
[1761858002691,4.09725607,182.55,182.54,3.5180735]
[1761858002913,4.09725607,182.56,182.5,19.70806122]
[1761858003117,0.72,182.59,182.55,3.5180735]
[1761858003319,4.09764422,182.58,182.57,3.5180735]
[1761858003614,4.09764422,182.58,182.54,3.5180735]
[1761858003788,4.81764422,182.57,182.54,3.5180735]
[1761858003988,4.09764422,182.56,182.54,3.5180735]
[1761858004211,4.09764422,182.55,182.54,3.5180735]
[1761858004402,4.81764422,182.55,182.54,3.5180735]
[1761858005425,4.81764422,182.55,182.54,8.99632484]
[1761858005914,4.81764422,182.55,182.53,3.5180735]
[1761858006112,4.81764422,182.54,182.53,3.5180735]
[1761858006289,0.72,182.54,182.53,3.5180735]
[1761858006891,4.81764422,182.54,182.53,3.5180735]
[1761858007423,4.09764422,182.54,182.53,8.99662497]
[1761858008119,4.81764422,182.54,182.53,5.47855147]
[1761858008326,4.81764422,182.54,182.53,8.99662497]
[1761858008818,4.81764422,182.54,182.49,61.7]
[1761858009019,4.81764422,182.53,182.49,8.99770687]
[1761858009221,4.81764422,182.53,182.48,13.69981843]
[1761858009222,4.09764422,182.52,182.5,3.5180735]
[1761858009420,4.09764422,182.51,182.5,5.47937662]
[1761858009792,4.09764422,182.51,182.49,3.5180735]
[1761858010031,0.72,182.52,182.49,3.5180735]
[1761858010207,4.10048871,182.51,182.5,3.5180735]
[1761858010605,4.10048871,182.51,182.49,5.47969713]
[1761858010801,0.72,182.51,182.47,5.4800788]
[1761858011113,0.72,182.51,182.46,14.23156571]
[1761858011114,4.10043973,182.5,182.49,3.5180735]
[1761858011727,4.82043973,182.5,182.43,5.48129026]
[1761858012027,4.82043973,182.5,182.34,3.5180735]
[1761858012028,3.5180735,182.44,182.35,5.47876308]
[1761858012216,8.33851323,182.43,182.37,3.5180735]
[1761858012551,3.68838648,182.42,182.35,0.53]
[1761858012746,3.68838648,182.41,182.33,13.10550115]
[1761858012927,8.50736845,182.4,182.35,3.5180735]
[1761858013246,4.09898197,182.39,182.35,3.5180735]
[1761858013533,4.09898197,182.38,182.33,26.28690355]
[1761858013716,0.72,182.39,182.35,3.5180735]
[1761858013935,4.09476853,182.38,182.34,4.0480735]
[1761858014156,21.312,182.42,182.37,3.5180735]
[1761858014320,21.312,182.42,182.34,4.0480735]
[1761858014321,8.1777157,182.41,182.39,3.5180735]
[1761858014649,4.09166443,182.4,182.35,0.53]
[1761858014833,3.68445281,182.43,182.39,3.5180735]
[1761858015026,8.17700489,182.42,182.41,3.5180735]
[1761858015222,4.09152538,182.42,182.41,3.5180735]
[1761858015440,4.81152538,182.42,182.41,3.5180735]
[1761858016055,4.81152538,182.42,182.39,3.5180735]
[1761858016251,0.72,182.42,182.39,3.5180735]
[1761858016438,4.08702185,182.41,182.4,3.5180735]
[1761858016836,4.80702185,182.41,182.39,3.5180735]
[1761858017148,0.72,182.4,182.39,3.5180735]
[1761858017346,0.72,182.4,182.38,3.5180735]
[1761858017928,0.72,182.4,182.38,9.00105938]
[1761858018250,4.2380735,182.4,182.34,3.5180735]
[1761858018425,9.7206226,182.4,182.34,3.5180735]
[1761858018626,4.80327778,182.39,182.34,3.5180735]
[1761858019025,0.72,182.38,182.35,3.5180735]
[1761858019228,4.39433992,182.43,182.37,3.5180735]
[1761858019428,4.80067875,182.42,182.33,12.57526647]
[1761858019648,7.59875225,182.41,182.36,3.5180735]
[1761858019857,4.08067875,182.4,182.37,9.00138383]
[1761858020057,4.80067875,182.4,182.38,3.5180735]
[1761858020242,0.72,182.39,182.36,5.48364312]
[1761858020559,0.72,182.39,182.35,3.5180735]
[1761858021038,4.79885666,182.39,182.35,3.5180735]
[1761858021350,0.72,182.39,182.35,3.5180735]
[1761858021543,0.72,182.38,182.34,5.48426017]
[1761858021744,0.72,182.38,182.33,7.09098999]
[1761858021745,0.72,182.38,182.33,12.57548615]
[1761858021946,0.72,182.38,182.35,3.5180735]
[1761858022153,4.07689636,182.39,182.37,3.5180735]
[1761858022339,0.72,182.38,182.37,3.5180735]
[1761858024151,0.72,182.38,182.36,3.5180735]
[1761858024448,4.79203723,182.38,182.36,3.5180735]
[1761858024655,0.72,182.38,182.36,3.5180735]
[1761858024860,0.72,182.37,182.36,3.5180735]
[1761858025534,0.72,182.37,182.33,7.09098999]
[1761858025734,0.72,182.37,182.35,3.5180735]
[1761858026257,0.72,182.37,182.34,3.5180735]
[1761858026938,6.20336501,182.37,182.33,7.09098999]
[1761858027146,6.20336501,182.37,182.34,3.5180735]
[1761858027344,0.72,182.36,182.34,3.5180735]
[1761858027743,4.06935194,182.38,182.35,3.5180735]
[1761858028061,0.72,182.39,182.37,3.5180735]
[1761858028362,0.72,182.39,182.38,3.5180735]
[1761858028544,0.72,182.39,182.37,3.5180735]
[1761858029134,4.06910979,182.38,182.37,3.5180735]
[1761858029333,4.77910979,182.38,182.37,3.5180735]
[1761858029547,0.71,182.38,182.35,5.48395941]
[1761858029769,0.71,182.38,182.37,3.5180735]
[1761858030234,4.77954825,182.38,182.37,3.5180735]
[1761858030431,0.71,182.38,182.36,3.5180735]
[1761858030636,0.71,182.37,182.36,3.5180735]
[1761858030837,4.06954825,182.38,182.36,3.5180735]
[1761858031166,0.71,182.38,182.36,3.5180735]
[1761858031651,4.5929249,182.45,182.37,3.5180735]
[1761858031850,8.71374575,182.44,182.41,3.5180735]
[1761858032062,4.06887449,182.43,182.41,3.5180735]
[1761858032239,4.06887449,182.42,182.41,3.5180735]
[1761858032649,4.77887449,182.42,182.4,3.5180735]
[1761858032847,4.77877013,182.41,182.4,3.5180735]
[1761858033043,0.71,182.41,182.4,3.5180735]
[1761858034055,0.71,182.41,182.39,3.5180735]
[1761858035164,4.06878763,182.42,182.39,3.5180735]
[1761858035464,0.71,182.41,182.39,3.5180735]
[1761858035862,0.71,182.41,182.39,9.00080429]
[1761858036451,0.71,182.41,182.39,3.5180735]
[1761858036969,0.71,182.41,182.4,3.5180735]
[1761858038280,0.71,182.41,182.39,9.00075424]
[1761858038654,0.71,182.41,182.39,5.48268074]
[1761858038968,0.71,182.41,182.39,9.00075424]
[1761858040572,3.66170071,182.44,182.4,3.5180735]
[1761858040875,13.70011164,182.49,182.43,3.5180735]
[1761858040876,4.37170071,182.46,182.43,3.5180735]
[1761858041050,4.07126444,182.45,182.41,0.53]
[1761858041250,4.37170071,182.48,182.44,3.5180735]
[1761858041452,7.73387026,182.47,182.45,3.5180735]
[1761858041651,4.37170071,182.48,182.41,0.53]
[1761858041878,3.5180735,182.45,182.4,3.5180735]
[1761858042052,3.66170071,182.44,182.4,3.5180735]
[1761858042257,0.71,182.43,182.4,3.5180735]
[1761858042776,3.5180735,182.42,182.37,3.5180735]
[1761858042962,9.85334009,182.43,182.35,5.48395941]
[1761858043161,0.71,182.42,182.38,3.5180735]
[1761858043367,4.37663477,182.42,182.38,3.5180735]
[1761858043878,0.71,182.41,182.38,3.5180735]
[1761858044465,0.71,182.41,182.39,3.5180735]
[1761858044884,0.71,182.41,182.38,3.5180735]
[1761858045386,0.71,182.41,182.37,5.48308846]
[1761858045686,0.71,182.41,182.38,3.5180735]
[1761858046973,0.71,182.41,182.37,5.48308846]
[1761858047565,0.71,182.41,182.37,9.00116196]
[1761858048096,4.37663477,182.41,182.37,9.00116196]
[1761858048666,4.37663477,182.41,182.33,7.09098999]
[1761858048667,24.1100735,182.38,182.33,7.09098999]
[1761858048975,20.592,182.38,182.33,16.09357777]
[1761858049173,0.71,182.37,182.33,12.57550427]
[1761858049377,4.37663477,182.37,182.33,12.57550427]
[1761858050266,3.66663477,182.36,182.34,3.5180735]
[1761858050498,3.67812473,182.38,182.34,0.53]
[1761858050669,4.38812473,182.41,182.36,3.5180735]
[1761858050867,4.38812473,182.41,182.37,3.5180735]
[1761858050868,3.67812473,182.4,182.37,3.5180735]
[1761858051093,3.67812473,182.4,182.35,0.53]
[1761858051268,3.67812473,182.39,182.37,3.5180735]
[1761858051599,3.67812473,182.41,182.33,26.28690667]
[1761858051798,7.77005724,182.4,182.35,3.5180735]
[1761858051971,3.68062976,182.39,182.35,3.5180735]
[1761858052170,3.68062976,182.39,182.33,26.81690667]
[1761858052171,3.68062976,182.38,182.33,11.13906349]
[1761858052386,3.68062976,182.37,182.33,16.62351212]
[1761858052585,3.68062976,182.37,182.34,3.5180735]
[1761858052768,3.68062976,182.37,182.33,12.57543862]
[1761858052967,4.39370786,182.36,182.34,3.5180735]
[1761858053162,3.68370786,182.35,182.34,3.5180735]
[1761858053362,3.68370786,182.35,182.34,2.25592305]
[1761858054895,0.71,182.38,182.34,2.25592305]
[1761858055081,7.7886937,182.37,182.34,2.25592305]
[1761858055400,7.7886937,182.36,182.35,2.25592305]
[1761858055588,3.68935212,182.36,182.35,2.25592305]
[1761858056077,3.68935212,182.36,182.35,7.73988246]
[1761858056283,3.68935212,182.36,182.35,2.25592305]
[1761858056583,7.79628379,182.36,182.34,2.25592305]
[1761858056785,3.68935212,182.35,182.34,2.25592305]
[1761858057376,3.68935212,182.35,182.34,7.74018322]
[1761858059279,3.68935212,182.35,182.34,8.27018322]
[1761858059798,3.68935212,182.35,182.33,7.09098999]
[1761858059999,3.68935212,182.34,182.33,12.57555095]
[1761858060374,5.29329347,182.39,182.33,14.831474]
[1761858060375,4.58329347,182.39,182.33,14.831474]
[1761858060577,12.29695461,182.38,182.33,12.57555095]
[1761858060789,11.58695461,182.37,182.35,2.25592305]
[1761858060983,7.80394046,182.36,182.35,2.25592305]
[1761858061987,7.80394046,182.36,182.34,5.48419594]
[1761858062184,0.71,182.38,182.35,2.25592305]
[1761858062385,11.55800665,182.37,182.33,9.34691304]
[1761858062604,7.80512503,182.36,182.33,9.34691304]
[1761858062905,3.69696748,182.35,182.33,14.83144611]
[1761858063105,0.71,182.37,182.33,12.57552306]
[1761858063281,7.80519641,182.36,182.33,14.83144611]
[1761858063601,3.69692377,182.35,182.33,14.83144611]
[1761858063902,0.71,182.39,182.34,2.25592305]
[1761858064100,11.55821772,182.38,182.37,2.25592305]
[1761858064305,12.26821772,182.38,182.37,2.25592305]
[1761858064813,11.55821772,182.38,182.37,2.25592305]
[1761858064992,7.80521161,182.38,182.37,2.25592305]
[1761858065190,7.80521161,182.38,182.33,87.98692546]
[1761858065384,0.71,182.4,182.37,2.25592305]
[1761858065585,11.55645554,182.39,182.33,7.09098999]
[1761858065785,22.84792305,182.36,182.33,7.09098999]
[1761858065984,11.55645554,182.35,182.33,7.09098999]
[1761858066189,7.80427481,182.34,182.33,9.34691304]
[1761858066887,7.80427481,182.34,182.33,14.831474]
[1761858067603,7.80427481,182.34,182.33,15.361474]
[1761858068112,7.80427481,182.34,182.33,9.34691304]
[1761858068312,8.51427481,182.34,182.33,9.34691304]
[1761858068611,7.80427481,182.34,182.33,7.09098999]
[1761858069108,7.80427481,182.34,182.33,9.34691304]
[1761858069711,8.51427481,182.34,182.33,7.09098999]
[1761858069889,17.78430202,182.34,182.33,7.09098999]
[1761858071083,12.30004185,182.34,182.33,7.09098999]
[1761858071385,17.78430202,182.34,182.33,7.09098999]
[1761858071824,29.82905276,182.34,182.33,6.89098999]
[1761858071980,38.85274496,182.34,182.33,6.37098999]
[1761858072180,29.82905276,182.34,182.33,6.37098999]
[1761858072411,9.78882769,182.33,182.32,0.2]
[1761858072617,24.25479259,182.33,182.32,0.2]
[1761858072817,24.25479259,182.33,182.32,1e-08]
[1761858073381,30.87013096,182.33,182.32,1e-08]
[1761858073902,36.35469192,182.33,182.32,1e-08]
[1761858074103,44.45648823,182.33,182.32,1e-08]
[1761858074305,38.35469191,182.33,182.32,1e-08]
[1761858074994,20.592,182.26,182.2,8.40432389]
[1761858075194,20.592,182.25,182.2,8.40432389]
[1761858075410,3.6873929,182.25,182.2,2.91592305]
[1761858075609,24.8993929,182.25,182.2,2.91592305]
[1761858075790,21.212,182.25,182.2,2.91592305]
[1761858076003,26.69911784,182.25,182.2,2.91592305]
[1761858076210,26.07911784,182.25,182.21,2.25592305]
[1761858076390,26.69911784,182.25,182.2,8.42424799]
[1761858076596,26.69911784,182.25,182.2,2.93592305]
[1761858077201,26.69911784,182.25,182.2,0.68]
[1761858077405,28.95504089,182.25,182.2,6.16846827]
[1761858077821,28.95504089,182.25,182.2,0.68]
[1761858078000,2.25592305,182.24,182.2,0.68]
[1761858078200,2.25592305,182.24,182.19,0.2]
[1761858078201,2.25592305,182.23,182.19,0.2]
[1761858078403,20.592,182.21,182.19,0.2]
[1761858079197,2.25592305,182.2,182.19,0.2]
[1761858079395,22.84792305,182.21,182.19,0.2]
[1761858080105,28.33622776,182.21,182.19,0.2]
[1761858080309,2.25592305,182.2,182.19,0.2]
[1761858080511,2.87592305,182.2,182.19,0.2]
[1761858080717,10.63683652,182.2,182.19,0.2]
[1761858080914,6.96044868,182.2,182.19,0.2]
[1761858081231,23.46792305,182.2,182.19,0.2]
[1761858082134,46.49869733,182.2,182.19,0.2]
[1761858082301,46.49185533,182.2,182.19,0.2]
[1761858082503,42.41459028,182.2,182.19,0.2]
[1761858082912,38.74522494,182.2,182.19,0.2]
[1761858083131,46.49163753,182.2,182.19,0.2]
[1761858083336,15.27549508,182.26,182.19,8.6246985]
[1761858083509,6.32985527,182.25,182.19,7.9446985]
[1761858083712,2.25592305,182.25,182.2,0.68]
[1761858084020,20.592,182.23,182.2,0.68]
[1761858084421,7.74301992,182.25,182.2,6.16847358]
[1761858084729,7.74301992,182.25,182.2,8.42439663]
[1761858084906,20.592,182.24,182.21,0.68]
[1761858085229,22.84792305,182.24,182.2,0.68]
[1761858085425,20.592,182.24,182.2,0.68]
[1761858085629,20.592,182.24,182.21,2.25592305]
[1761858085933,7.74266655,182.26,182.21,2.25592305]
[1761858086120,7.74266655,182.26,182.21,2.93592305]
[1761858086431,28.33466655,182.26,182.21,2.93592305]
[1761858086632,28.33466655,182.26,182.21,0.68]
[1761858086928,3.66367562,182.25,182.21,8.42399141]
[1761858087129,28.95466655,182.26,182.21,6.16806836]
[1761858088032,28.95466655,182.26,182.21,8.42399141]
[1761858088229,26.0787435,182.26,182.22,2.93592305]
[1761858088431,28.33466655,182.26,182.22,0.68]
[1761858088813,28.33466655,182.26,182.21,2.25592305]
[1761858089030,28.33466655,182.26,182.21,2.91592305]
[1761858089633,28.95466655,182.26,182.21,0.66]
[1761858090011,28.95466655,182.26,182.2,7.74439725]
[1761858090012,28.33466655,182.26,182.2,5.4884742]
[1761858090334,28.33466655,182.26,182.19,0.2]
[1761858090335,22.84792305,182.22,182.19,0.2]
[1761858090537,23.46792305,182.22,182.19,0.2]
[1761858091234,2.25592305,182.2,182.19,0.2]
[1761858091434,7.74439725,182.2,182.19,0.2]
[1761858092533,8.36439725,182.2,182.19,0.2]
[1761858092731,7.74439725,182.2,182.19,0.2]
[1761858095026,21.81612494,182.2,182.19,0.2]
[1761858095337,18.15322494,182.2,182.19,0.2]
[1761858096049,22.22280476,182.2,182.19,0.2]
[1761858096547,29.64029917,182.2,182.19,0.2]
[1761858098230,21.81612494,182.2,182.19,0.2]
[1761858098654,20.592,182.17,182.16,0.2]
[1761858098954,38.12612879,182.17,182.16,0.2]
[1761858099136,46.47821832,182.17,182.16,0.2]
[1761858099637,50.23184514,182.17,182.16,0.2]
[1761858099834,9.78882769,182.16,182.14,0.2]
[1761858100187,23.53046709,182.15,182.14,0.2]
[1761858100448,24.15046709,182.15,182.14,0.2]
[1761858100817,24.15046709,182.15,182.13,0.2]
[1761858101047,13.93309855,182.14,182.13,0.2]
[1761858101227,16.1890216,182.14,182.13,0.2]
[1761858101533,19.8519216,182.14,182.13,0.2]
[1761858101723,19.2319216,182.14,182.13,0.2]
[1761858101954,19.8519216,182.14,182.13,0.2]
[1761858103041,19.2319216,182.14,182.13,0.2]
[1761858103425,19.8519216,182.14,182.13,0.2]
[1761858104034,24.46539514,182.14,182.13,0.2]
[1761858104827,23.84539514,182.14,182.13,0.2]
[1761858105249,24.46539514,182.14,182.13,0.2]
[1761858105830,19.2319216,182.14,182.13,0.2]
[1761858106244,19.2319216,182.14,182.13,0.86]
[1761858106245,23.53046709,182.14,182.13,0.86]
[1761858106437,19.86756709,182.14,182.13,0.86]
[1761858106639,23.53046709,182.14,182.13,0.86]
[1761858106864,7.82281635,182.14,182.13,0.86]
[1761858107149,8.87126142,182.16,182.13,0.2]
[1761858107150,5.4896794,182.16,182.13,0.2]
[1761858107348,2.25592305,182.15,182.13,0.2]
[1761858108044,7.74560245,182.16,182.13,0.2]
[1761858108246,20.592,182.14,182.13,0.86]
[1761858108829,22.84792305,182.14,182.13,0.2]
[1761858109045,20.592,182.14,182.13,0.2]
[1761858109356,24.65866148,182.14,182.13,0.86]
[1761858109538,24.2549,182.14,182.13,0.86]
[1761858109739,20.592,182.14,182.13,0.86]
[1761858111360,24.2549,182.14,182.13,0.86]
[1761858111649,20.592,182.14,182.13,0.86]
[1761858111857,28.32585128,182.14,182.13,0.2]
[1761858112036,28.32585128,182.14,182.13,0.86]
[1761858112439,28.32881055,182.14,182.13,0.86]
[1761858112646,20.592,182.14,182.13,0.86]
[1761858113161,24.25773185,182.14,182.13,0.86]
[1761858113357,28.33343173,182.14,182.13,0.86]
[1761858113938,28.33343173,182.14,182.13,0.2]
[1761858114554,33.82371393,182.14,182.13,0.2]
[1761858115242,28.33343173,182.14,182.13,0.2]
[1761858116641,33.82371393,182.14,182.13,0.2]
[1761858116873,28.33343173,182.14,182.13,0.2]
[1761858117050,28.33343173,182.14,182.13,0.86]
[1761858118174,28.33343173,182.14,182.13,4.39423699]
[1761858119775,28.33343173,182.14,182.13,0.86]
[1761858120266,28.33343173,182.14,182.13,0.2]
[1761858120672,32.02753182,182.14,182.13,0.2]
[1761858121264,28.33343173,182.14,182.13,0.2]
[1761858121649,32.02864136,182.14,182.13,0.2]
[1761858122451,41.73316055,182.14,182.13,0.2]
[1761858123192,41.05316055,182.14,182.11,0.2]
[1761858123478,11.43877633,182.13,182.11,9.92525685]
[1761858123682,7.74143173,182.12,182.11,9.92525685]
[1761858123856,3.53423699,182.17,182.11,9.22525685]
[1761858123857,3.66573185,182.15,182.11,9.22525685]
[1761858124055,7.77707417,182.14,182.12,3.53423699]
[1761858124258,7.77707417,182.13,182.12,5.49088513]
[1761858124484,3.68391924,182.13,182.12,9.02512212]
[1761858124664,3.68391924,182.17,182.12,9.02512212]
[1761858124981,11.47458405,182.16,182.14,3.53423699]